bitfinex-derivatives/quotes_ETHF0:USTF0_20260112
["timestamp","ask_amount","ask_price","bid_price","bid_amount"]
[1768200594216,0.00331679,3158.1,3156.7,0.14146721]
[1768200594515,0.81910449,3158.0,3156.7,0.14146721]
[1768200594720,0.81910449,3157.9,3156.7,0.14146721]
[1768200594907,0.81910449,3157.8,3156.7,0.14146721]
[1768200595114,0.00331679,3158.1,3156.7,0.14146721]
[1768200595418,0.81910389,3158.0,3156.7,0.14146721]
[1768200595615,0.81910389,3157.9,3156.7,0.14146721]
[1768200595915,0.81910389,3157.8,3156.7,0.14146721]
[1768200596113,0.00331679,3158.1,3156.7,0.14146721]
[1768200596320,0.8190039,3158.0,3156.7,0.14146721]
[1768200596618,0.8190039,3157.9,3156.7,0.14146721]
[1768200596816,0.00331679,3158.1,3156.7,0.14146721]
[1768200597017,0.81887093,3158.0,3156.7,0.14146721]
[1768200597219,0.81887093,3157.9,3156.7,0.14146721]
[1768200597407,0.00331679,3158.1,3156.7,0.14146721]
[1768200597613,0.81878977,3158.0,3156.7,0.14146721]
[1768200597816,0.81878977,3157.9,3156.7,0.14146721]
[1768200598018,0.00331679,3158.1,3156.7,0.14146721]
[1768200598210,0.81879243,3158.0,3156.7,0.14146721]
[1768200598414,0.81873459,3157.9,3156.8,0.13799399]
[1768200598613,0.00331679,3158.1,3156.8,0.13799399]
[1768200598818,0.81873459,3158.0,3156.8,0.13799399]
[1768200599016,0.81873459,3157.9,3156.8,0.13799399]
[1768200599214,0.00331679,3158.1,3156.8,0.13799399]
[1768200599419,0.81869085,3158.0,3156.8,0.13799399]
[1768200599618,0.81869085,3157.9,3156.8,0.13799399]
[1768200599824,0.00331679,3158.1,3156.8,0.13799399]
[1768200600126,0.15848,3159.3,3157.8,0.13799399]
[1768200601026,0.16221916,3159.3,3157.8,0.13799399]
[1768200602432,0.00373916,3159.3,3158.1,0.96454673]
[1768200602823,0.00373916,3159.3,3158.1,1.10254072]
[1768200606030,0.14376882,3159.1,3157.4,0.14459898]
[1768200612039,0.81672089,3159.0,3157.4,0.14459898]
[1768200612342,0.81672089,3158.9,3157.4,0.14459898]
[1768200612640,0.81672089,3158.8,3157.4,0.14459898]
[1768200612829,0.81672089,3158.7,3157.4,0.14459898]
[1768200613034,0.81672089,3158.6,3157.4,0.14459898]
[1768200613337,0.00373916,3159.3,3157.9,0.1320782]
[1768200613532,0.81674371,3159.2,3157.9,0.1320782]
[1768200613740,0.81674371,3159.1,3157.9,0.1320782]
[1768200613938,0.81674371,3159.0,3157.9,0.1320782]
[1768200614134,0.81674371,3158.9,3157.9,0.1320782]
[1768200614437,0.81674371,3158.8,3157.9,0.1320782]
[1768200614636,0.81674371,3158.7,3157.9,0.1320782]
[1768200614840,0.00373916,3159.3,3157.9,0.1320782]
[1768200615035,0.81751806,3159.2,3157.9,0.1320782]
[1768200615236,0.81751806,3159.1,3157.9,0.1320782]
[1768200615439,0.81751806,3159.0,3157.9,0.1320782]
[1768200615635,0.81751806,3158.9,3157.9,0.1320782]
[1768200615836,0.81751806,3158.8,3157.9,0.1320782]
[1768200616135,0.81751806,3158.7,3157.9,0.1320782]
[1768200616342,0.00373916,3159.3,3157.9,0.1320782]
[1768200616542,0.81744595,3159.2,3157.9,0.1320782]
[1768200616741,0.81744595,3159.1,3157.9,0.1320782]
[1768200616942,0.81744595,3159.0,3157.9,0.1320782]
[1768200617144,0.81744595,3158.9,3157.9,0.1320782]
[1768200617342,0.81744595,3158.8,3157.9,0.1320782]
[1768200617543,0.81744595,3158.7,3157.9,0.1320782]
[1768200617744,0.00373916,3159.3,3157.9,0.1320782]
[1768200618042,0.81741529,3159.2,3157.9,0.1320782]
[1768200618231,0.81741529,3159.1,3157.9,0.1320782]
[1768200618434,0.81741529,3159.0,3157.9,0.1320782]
[1768200618634,0.81741529,3158.9,3157.9,0.1320782]
[1768200618836,0.81741529,3158.8,3157.9,0.1320782]
[1768200619045,0.00373916,3159.3,3157.9,0.1320782]
[1768200619233,0.81746209,3159.2,3157.9,0.1320782]
[1768200619439,0.81746209,3159.1,3157.9,0.1320782]
[1768200619641,0.81746209,3159.0,3157.9,0.1320782]
[1768200619844,0.81746209,3158.9,3157.9,0.1320782]
[1768200620041,0.00373916,3159.3,3157.9,0.1320782]
[1768200620344,0.8174084,3159.2,3157.9,0.1320782]
[1768200620545,0.8174084,3159.1,3157.9,0.1320782]
[1768200620738,0.8174084,3159.0,3157.9,0.1320782]
[1768200620942,0.8174084,3158.9,3157.9,0.1320782]
[1768200621240,0.00373916,3159.3,3157.9,0.1320782]
[1768200621440,0.81736993,3159.2,3157.9,0.1320782]
[1768200621634,0.81736993,3159.1,3157.9,0.1320782]
[1768200621838,0.81736993,3159.0,3157.9,0.1320782]
[1768200622035,0.81736993,3158.9,3157.9,0.1320782]
[1768200622240,0.00373916,3159.3,3157.9,0.1320782]
[1768200622447,0.8174186,3159.2,3157.9,0.1320782]
[1768200622648,0.8174186,3159.1,3157.9,0.1320782]
[1768200622847,0.8174186,3159.0,3157.9,0.1320782]
[1768200623149,0.8174186,3158.9,3157.9,0.1320782]
[1768200623351,0.00373916,3159.3,3157.9,0.1320782]
[1768200623553,0.817485,3159.2,3157.9,0.1320782]
[1768200623742,0.817485,3159.1,3157.9,0.1320782]
[1768200624046,0.817485,3159.0,3157.9,0.1320782]
[1768200624246,0.817485,3158.9,3157.9,0.1320782]
[1768200624447,0.00373916,3159.3,3157.9,0.1320782]
[1768200624647,0.81761958,3159.2,3157.9,0.1320782]
[1768200624848,0.81761958,3159.1,3157.9,0.1320782]
[1768200625049,0.81761958,3159.0,3157.9,0.1320782]
[1768200625249,0.81761958,3158.9,3157.9,0.1320782]
[1768200625448,0.81761958,3158.8,3157.9,0.1320782]
[1768200625645,0.00373916,3159.3,3157.9,0.1320782]
[1768200625846,0.81777654,3159.2,3157.9,0.1320782]
[1768200626051,0.81777654,3159.1,3157.9,0.1320782]
[1768200626251,0.81777654,3159.0,3157.9,0.1320782]
[1768200626551,0.81777654,3158.9,3157.9,0.1320782]
[1768200626752,0.81777654,3158.8,3157.9,0.1320782]
[1768200626953,0.00373916,3159.3,3157.9,0.1320782]
[1768200627144,0.81812166,3159.2,3157.9,0.1320782]
[1768200627344,0.81812166,3159.1,3158.0,0.96432452]
[1768200627544,0.81812166,3159.0,3158.0,0.96432452]
[1768200627750,0.81812166,3158.9,3158.0,0.96432452]
[1768200627952,0.81812166,3158.8,3158.0,0.96432452]
[1768200628154,0.96806368,3159.3,3158.0,0.96432452]
[1768200628348,0.81838849,3159.2,3158.0,0.96432452]
[1768200628553,0.81838849,3159.1,3158.0,0.96432452]
[1768200628746,0.81838849,3159.0,3158.0,0.96432452]
[1768200628944,0.81838849,3158.9,3158.0,0.96432452]
[1768200629150,0.81838849,3158.8,3158.0,0.96432452]
[1768200629446,0.81838849,3158.7,3158.0,0.96432452]
[1768200629650,0.96806368,3159.3,3158.0,0.96432452]
[1768200629852,0.81911404,3159.2,3158.0,0.96432452]
[1768200630055,0.81911404,3159.1,3158.0,0.96432452]
[1768200630250,0.81911404,3159.0,3158.0,0.96432452]
[1768200630547,0.81911404,3158.9,3158.0,0.96432452]
[1768200630745,0.81911404,3158.8,3158.0,0.96432452]
[1768200630958,0.81911404,3158.7,3158.0,0.96432452]
[1768200631159,0.96806368,3159.3,3158.0,0.96432452]
[1768200631359,0.81903768,3159.2,3158.0,0.96432452]
[1768200631548,0.81903768,3159.1,3158.0,0.96432452]
[1768200631748,0.81903768,3159.0,3158.0,0.96432452]
[1768200631948,0.81903768,3158.9,3158.0,0.96432452]
[1768200632160,0.81903768,3158.8,3158.0,0.96432452]
[1768200632359,0.81903768,3158.7,3158.0,0.96432452]
[1768200632561,0.00373916,3159.3,3158.0,0.96432452]
[1768200632858,0.8173793,3159.2,3158.0,0.96432452]
[1768200633158,0.8173793,3159.1,3158.0,0.96432452]
[1768200633369,0.8173793,3159.0,3158.0,0.96432452]
[1768200633556,0.8173793,3158.9,3158.0,0.96432452]
[1768200633753,0.8173793,3158.8,3158.0,0.96432452]
[1768200634054,0.8173793,3158.7,3158.0,0.96432452]
[1768200634260,0.00373916,3159.3,3158.0,0.96432452]
[1768200634560,0.81744828,3159.2,3158.0,0.96432452]
[1768200634762,0.81744828,3159.1,3158.0,0.96432452]
[1768200634954,0.81744828,3159.0,3158.0,0.96432452]
[1768200635157,0.81744828,3158.9,3158.0,0.96432452]
[1768200635360,0.81744828,3158.8,3158.0,0.96432452]
[1768200635555,0.81744828,3158.7,3158.0,0.96432452]
[1768200635864,0.00373916,3159.3,3158.0,0.96432452]
[1768200636056,0.81748095,3159.2,3158.0,0.96432452]
[1768200636253,0.81748095,3159.1,3158.0,0.96432452]
[1768200636450,0.81748095,3159.0,3158.0,0.96432452]
[1768200636655,0.81748095,3158.9,3158.0,0.96432452]
[1768200636855,0.81748095,3158.8,3158.0,0.96432452]
[1768200637054,0.81748095,3158.7,3158.0,0.96432452]
[1768200637255,0.00373916,3159.3,3158.0,0.96432452]
[1768200637463,0.8175334,3159.2,3158.0,0.96432452]
[1768200637661,0.8175334,3159.1,3158.0,0.96432452]
[1768200637858,0.8175334,3159.0,3158.0,0.96432452]
[1768200638166,0.8175334,3158.9,3158.0,0.96432452]
[1768200638363,0.8175334,3158.8,3158.0,0.96432452]
[1768200638555,0.8175334,3158.7,3158.0,0.96432452]
[1768200638859,0.00373916,3159.3,3158.0,0.96432452]
[1768200639158,0.81757992,3159.2,3158.0,0.96432452]
[1768200639354,0.81757992,3159.1,3158.0,0.96432452]
[1768200639559,0.81757992,3159.0,3158.0,0.96432452]
[1768200639759,0.81757992,3158.9,3158.0,0.96432452]
[1768200639955,0.81757992,3158.8,3158.0,0.96432452]
[1768200640152,0.81757992,3158.7,3158.0,0.96432452]
[1768200640353,0.00373916,3159.3,3158.0,0.96432452]
[1768200640552,0.81772427,3159.2,3158.0,0.96432452]
[1768200640760,0.81772427,3159.1,3158.0,0.96432452]
[1768200641058,0.00373916,3159.3,3158.0,0.96432452]
[1768200641059,0.81772427,3159.0,3158.0,0.96432452]
[1768200641257,0.81772427,3158.9,3158.0,0.96432452]
[1768200641457,0.81772427,3158.8,3158.0,0.96432452]
[1768200641659,0.81772427,3158.7,3158.0,0.96432452]
[1768200641957,0.00373916,3159.3,3158.0,0.96432452]
[1768200642156,0.81781583,3159.2,3158.0,0.96432452]
[1768200642360,0.81781583,3159.1,3158.0,0.96432452]
[1768200642560,0.81781583,3159.0,3158.0,0.96432452]
[1768200642860,0.81781583,3158.9,3158.0,0.96432452]
[1768200643059,0.81781583,3158.8,3158.0,0.96432452]
[1768200643260,0.81781583,3158.7,3158.0,0.96432452]
[1768200643463,0.81781583,3158.6,3158.0,0.96432452]
[1768200643762,0.00373916,3159.3,3158.0,0.96432452]
[1768200643961,0.81800435,3159.2,3158.0,0.96432452]
[1768200644158,0.81800435,3159.1,3158.0,0.96432452]
[1768200644359,0.81800435,3159.0,3158.0,0.96432452]
[1768200644562,0.81800435,3158.9,3158.0,0.96432452]
[1768200644763,0.81800435,3158.8,3158.0,0.96432452]
[1768200645064,0.81800435,3158.7,3158.0,0.96432452]
[1768200645252,0.81800435,3158.6,3158.0,0.96432452]
[1768200645455,0.00373916,3159.3,3158.0,0.96432452]
[1768200645664,0.81807202,3159.2,3158.0,0.96432452]
[1768200645858,0.96432452,3159.0,3157.5,0.14095581]
[1768200646058,0.81807202,3158.9,3157.6,0.96432452]
[1768200646364,0.81807202,3158.8,3157.6,1.10528033]
[1768200646561,0.81807202,3158.7,3157.8,0.96432452]
[1768200646754,0.81807202,3158.6,3157.8,0.96432452]
[1768200646957,0.81807202,3158.5,3157.8,0.96432452]
[1768200647161,0.96432452,3159.0,3157.8,0.96432452]
[1768200647362,0.82104028,3158.9,3157.8,0.96432452]
[1768200647562,0.82104028,3158.8,3157.8,0.96432452]
[1768200647764,0.82104028,3158.7,3157.8,0.96432452]
[1768200647958,0.82104028,3158.6,3157.8,0.96432452]
[1768200648158,0.82104028,3158.5,3157.6,0.14095581]
[1768200648354,0.96432452,3159.1,3157.8,0.96432452]
[1768200648567,0.82107523,3159.0,3157.8,0.96432452]
[1768200648867,0.82107523,3158.9,3158.0,0.96432452]
[1768200649066,0.82107523,3158.8,3158.0,1.10528033]
[1768200649257,0.82107523,3158.7,3158.0,1.10528033]
[1768200649459,0.82107523,3158.6,3158.0,1.10528033]
[1768200649654,0.82107523,3158.5,3158.1,0.14095581]
[1768200649861,0.96806368,3159.3,3158.1,0.14095581]
[1768200650065,0.82104028,3159.2,3158.1,0.14095581]
[1768200650265,0.82104028,3159.1,3158.1,0.14095581]
[1768200650560,0.82104028,3159.0,3158.1,0.14095581]
[1768200650768,0.82104028,3158.9,3158.1,0.14095581]
[1768200651065,0.82104028,3158.8,3158.1,0.14095581]
[1768200651264,0.82104028,3158.7,3158.1,0.14095581]
[1768200651468,0.82104028,3158.6,3158.1,0.14095581]
[1768200651667,0.82104028,3158.5,3158.1,0.14095581]
[1768200651965,0.00373916,3159.3,3158.1,0.14095581]
[1768200652168,0.8209986,3159.2,3158.1,0.14095581]
[1768200652366,0.8209986,3159.1,3158.1,0.14095581]
[1768200652666,0.8209986,3159.0,3158.1,0.14095581]
[1768200652865,0.13950935,3158.8,3157.2,2.27774026]
[1768200653062,0.13950935,3158.6,3156.8,0.14095581]
[1768200653369,0.96432452,3158.3,3156.9,0.96432452]
[1768200653569,0.8209986,3158.2,3157.1,0.96432452]
[1768200653768,0.8209986,3158.1,3157.1,0.96432452]
[1768200654075,0.8209986,3158.0,3157.1,0.96432452]
[1768200654265,0.8209986,3157.9,3157.1,0.96432452]
[1768200654465,0.8209986,3157.8,3157.1,0.96432452]
[1768200654765,0.13950935,3158.6,3157.1,0.96432452]
[1768200654965,0.96432452,3158.4,3157.1,0.96432452]
[1768200655169,0.84028233,3158.3,3157.1,0.96432452]
[1768200655367,0.84028233,3158.2,3157.1,0.96432452]
[1768200655559,0.84028233,3158.1,3157.1,0.96432452]
[1768200655763,0.84028233,3158.0,3157.1,0.96432452]
[1768200655965,0.84028233,3157.9,3157.1,0.96432452]
[1768200656166,0.84028233,3157.8,3157.1,0.96432452]
[1768200656468,0.96432452,3158.2,3156.9,1.10528033]
[1768200656671,0.83966013,3158.1,3156.9,1.10528033]
[1768200656869,0.83966013,3158.0,3156.9,0.14095581]
[1768200657067,0.83966013,3157.9,3156.9,0.14095581]
[1768200657269,0.83966013,3157.8,3156.9,0.14095581]
[1768200657571,0.96432452,3158.1,3156.9,0.14095581]
[1768200657772,0.83922017,3158.0,3156.9,0.14095581]
[1768200657964,0.83922017,3157.9,3156.9,0.14095581]
[1768200658164,0.83922017,3157.8,3156.9,0.14095581]
[1768200658365,0.96432452,3158.1,3156.9,0.14095581]
[1768200658569,0.83897746,3158.0,3156.9,0.14095581]
[1768200658771,0.83897746,3157.9,3156.9,0.14095581]
[1768200658969,0.96432452,3158.1,3156.9,0.14095581]
[1768200659166,0.83897895,3158.0,3156.9,0.14095581]
[1768200659366,0.83897895,3157.9,3156.9,0.14095581]
[1768200659666,0.96432452,3158.1,3156.9,0.14095581]
[1768200659867,0.83875997,3158.0,3156.9,0.14095581]
[1768200660062,0.83875997,3157.9,3156.9,0.14095581]
[1768200660263,0.96432452,3158.1,3156.9,0.14095581]
[1768200660467,0.83868804,3158.0,3156.9,0.14095581]
[1768200660673,0.83868804,3157.9,3156.9,0.14095581]
[1768200660980,0.96432452,3158.1,3156.9,0.14095581]
[1768200661273,0.8386265,3158.0,3156.9,0.14095581]
[1768200661472,0.8386265,3157.9,3156.9,0.14095581]
[1768200661673,0.96432452,3158.1,3156.9,0.14095581]
[1768200661871,0.8384124,3158.0,3156.9,0.14095581]
[1768200662176,0.8384124,3157.9,3156.9,0.14095581]
[1768200662372,0.8384124,3157.8,3156.9,0.14095581]
[1768200662675,1.10383387,3158.3,3156.9,1.10528033]
[1768200662872,0.86860759,3158.2,3156.9,1.10528033]
[1768200663173,0.86860759,3158.1,3156.9,1.10528033]
[1768200663381,0.86860759,3158.0,3156.9,1.10528033]
[1768200663672,0.86860759,3157.9,3156.9,1.10528033]
[1768200663873,0.86860759,3157.8,3157.1,0.96432452]
[1768200664073,0.96432452,3158.4,3157.1,0.96432452]
[1768200664275,0.8684777,3158.3,3157.1,0.96432452]
[1768200664474,0.8684777,3158.2,3157.1,0.96432452]
[1768200664776,0.8684777,3158.1,3157.1,0.96432452]
[1768200665072,0.8684777,3158.0,3157.1,0.96432452]
[1768200665275,0.8684777,3157.9,3157.1,0.96432452]
[1768200665467,0.8684777,3157.8,3157.1,0.96432452]
[1768200665675,0.96432452,3158.4,3157.1,0.96432452]
[1768200665970,0.868531,3158.3,3157.1,0.96432452]
[1768200666170,0.868531,3158.2,3157.1,0.96432452]
[1768200666370,0.868531,3158.1,3157.1,0.96432452]
[1768200666567,0.868531,3158.0,3157.1,0.96432452]
[1768200666769,0.868531,3157.9,3156.7,0.00347322]
[1768200666967,0.868531,3157.8,3156.7,1.10067858]
[1768200667167,0.96432452,3158.0,3156.7,1.10067858]
[1768200667368,0.86850402,3157.9,3156.9,0.96432452]
[1768200667674,0.86850402,3157.8,3156.9,0.96432452]
[1768200667876,0.86850402,3157.7,3156.9,0.96432452]
[1768200668081,0.96432452,3158.2,3156.9,0.96432452]
[1768200668379,0.86848695,3158.1,3156.9,0.96432452]
[1768200668571,0.86848695,3158.0,3156.9,0.96432452]
[1768200668773,0.86848695,3157.9,3156.9,0.96432452]
[1768200669072,0.86848695,3157.8,3156.9,0.96432452]
[1768200669279,0.86848695,3157.7,3156.9,0.96432452]
[1768200669572,0.96432452,3158.2,3156.9,0.96432452]
[1768200669769,0.86830876,3158.1,3156.8,0.96432452]
[1768200669968,0.86830876,3158.0,3156.8,0.96432452]
[1768200670168,0.86830876,3157.9,3156.8,0.96432452]
[1768200670368,0.86830876,3157.8,3156.8,0.96432452]
[1768200670673,0.86830876,3157.7,3156.8,0.96432452]
[1768200670887,0.96432452,3158.1,3156.8,0.96432452]
[1768200671080,0.86835335,3158.0,3156.8,0.96432452]
[1768200671268,0.86835335,3157.9,3156.8,0.96432452]
[1768200671470,0.86835335,3157.8,3156.8,0.96432452]
[1768200671675,0.86835335,3157.7,3156.8,0.96432452]
[1768200671876,0.96432452,3158.1,3156.8,0.96432452]
[1768200672078,0.86850991,3158.0,3156.8,0.96432452]
[1768200672375,0.86850991,3157.9,3156.8,0.96432452]
[1768200672568,0.86850991,3157.8,3156.8,0.96432452]
[1768200672768,0.86850991,3157.7,3156.8,0.96432452]
[1768200672968,0.96432452,3158.1,3156.8,0.96432452]
[1768200673169,0.86857102,3158.0,3156.8,0.96432452]
[1768200673468,0.86857102,3157.9,3156.8,0.96432452]
[1768200673664,0.86857102,3157.8,3156.8,0.96432452]
[1768200673869,0.86857102,3157.7,3156.8,0.96432452]
[1768200674169,0.86857102,3157.6,3156.8,0.96432452]
[1768200674477,0.96432452,3158.1,3156.8,0.96432452]
[1768200674664,0.86881275,3158.0,3156.8,0.96432452]
[1768200674868,0.86881275,3157.9,3156.8,0.96432452]
[1768200675066,0.86881275,3157.8,3156.8,0.96432452]
[1768200675269,0.86881275,3157.7,3156.8,0.96432452]
[1768200675569,0.86881275,3157.6,3156.8,0.96432452]
[1768200675770,0.96432452,3158.1,3156.8,0.96432452]
[1768200675979,0.86898467,3158.0,3156.7,0.13635406]
[1768200676276,0.86898467,3157.9,3156.8,0.96432452]
[1768200676479,0.86898467,3157.8,3156.7,0.13635406]
[1768200676673,0.86898467,3157.7,3156.7,1.10067858]
[1768200676879,0.86898467,3157.6,3156.7,0.00347322]
[1768200677272,0.86898467,3157.5,3156.7,0.00347322]
[1768200677473,0.96432452,3157.7,3156.7,0.00347322]
[1768200677680,0.86926475,3157.6,3156.7,0.00347322]
[1768200677872,0.86926475,3157.5,3156.7,0.00347322]
[1768200678070,0.96432452,3157.9,3156.7,0.00347322]
[1768200678274,0.86926431,3157.8,3156.7,0.00347322]
[1768200678475,0.96432452,3157.5,3156.7,0.00347322]
[1768200678781,0.86926431,3157.4,3156.7,0.00347322]
[1768200678979,0.86926431,3157.3,3156.3,0.96432452]
[1768200679285,0.86926431,3157.2,3156.3,0.96432452]
[1768200679477,0.86926431,3157.1,3156.3,0.96432452]
[1768200679683,0.96432452,3157.5,3156.3,0.96432452]
[1768200679983,0.86837494,3157.4,3156.3,0.96761542]
[1768200680183,0.86837494,3157.3,3156.3,0.96761542]
[1768200680383,0.86837494,3157.2,3156.3,0.96761542]
[1768200680574,0.96432452,3157.5,3156.3,0.96761542]
[1768200680575,0.86837494,3157.1,3156.3,0.96761542]
[1768200680776,0.96432452,3157.5,3156.3,0.96761542]
[1768200680985,0.8685362,3157.4,3156.3,0.96761542]
[1768200681176,0.8685362,3157.3,3156.3,0.96761542]
[1768200681377,0.8685362,3157.2,3156.3,0.96761542]
[1768200681578,0.8685362,3157.1,3156.3,0.96761542]
[1768200681778,0.8685362,3157.0,3156.3,0.96761542]
[1768200681978,0.00353263,3157.0,3156.3,0.96761542]
[1768200683787,0.87582751,3156.9,3156.3,0.0032909]
[1768200683987,0.00353263,3157.0,3156.3,0.0032909]
[1768200684185,0.87582779,3156.9,3156.3,0.0032909]
[1768200684384,0.00353263,3157.0,3156.3,0.0032909]
[1768200684583,0.87569442,3156.9,3156.3,0.0032909]
[1768200684785,0.00353263,3157.0,3156.3,0.0032909]
[1768200684982,0.87575682,3156.9,3156.3,0.0032909]
[1768200685182,0.00353263,3157.0,3156.3,0.0032909]
[1768200685382,0.8758309,3156.9,3156.3,0.0032909]
[1768200685583,0.00353263,3157.0,3156.3,0.0032909]
[1768200685783,0.87583495,3156.9,3156.3,0.0032909]
[1768200686078,0.00353263,3157.0,3156.3,0.0032909]
[1768200686282,0.87569988,3156.9,3156.3,0.0032909]
[1768200686594,0.00353263,3157.0,3156.3,0.0032909]
[1768200686782,0.87571543,3156.9,3156.3,0.0032909]
[1768200686988,0.00353263,3157.0,3156.3,0.0032909]
[1768200687186,0.87571494,3156.9,3156.3,0.0032909]
[1768200687488,0.00353263,3157.0,3156.3,0.0032909]
[1768200687683,0.87559106,3156.9,3156.3,0.0032909]
[1768200687884,0.00353263,3157.0,3156.3,0.0032909]
[1768200688085,0.87559171,3156.9,3156.3,0.0032909]
[1768200688284,0.00353263,3157.0,3156.3,0.0032909]
[1768200688485,0.87545782,3156.9,3156.3,0.0032909]
[1768200688686,0.00353263,3157.0,3156.3,0.0032909]
[1768200688886,0.87545776,3156.9,3156.3,0.0032909]
[1768200689086,0.00353263,3157.0,3156.3,0.0032909]
[1768200689286,0.87538472,3156.9,3156.3,0.0032909]
[1768200689487,0.00353263,3157.0,3156.3,0.0032909]
[1768200689687,0.87537704,3156.9,3156.3,0.0032909]
[1768200689887,0.00353263,3157.0,3156.3,0.0032909]
[1768200690088,0.875377,3156.9,3156.3,0.0032909]
[1768200690390,0.00353263,3157.0,3156.3,0.0032909]
[1768200690589,0.87805848,3156.9,3156.3,0.0032909]
[1768200690789,0.00353263,3157.0,3156.3,0.0032909]
[1768200690986,0.8780584,3156.9,3156.3,0.0032909]
[1768200691289,0.00353263,3157.0,3156.3,0.0032909]
[1768200691491,0.87818514,3156.9,3156.3,0.0032909]
[1768200691690,0.00353263,3157.0,3156.3,0.0032909]
[1768200691891,0.8781842,3156.9,3156.3,0.0032909]
[1768200692191,0.00353263,3157.0,3156.3,0.0032909]
[1768200692496,0.87715771,3156.9,3156.3,0.0032909]
[1768200692698,0.00353263,3157.0,3156.3,0.0032909]
[1768200692883,0.87715137,3156.9,3156.3,0.0032909]
[1768200693084,0.00353263,3157.0,3156.3,0.0032909]
[1768200693288,0.87711653,3156.9,3156.3,0.0032909]
[1768200693489,0.00353263,3157.0,3156.3,0.0032909]
[1768200693692,0.877111,3156.9,3156.3,0.0032909]
[1768200693892,0.00353263,3157.0,3156.3,0.0032909]
[1768200694094,0.87711191,3156.9,3156.3,0.0032909]
[1768200694292,0.00353263,3157.0,3156.3,0.0032909]
[1768200694492,0.87718578,3156.9,3156.3,0.0032909]
[1768200694693,0.00353263,3157.0,3156.3,0.0032909]
[1768200694998,0.87718401,3156.9,3156.3,0.0032909]
[1768200695199,0.00353263,3157.0,3156.3,0.0032909]
[1768200695398,0.87719447,3156.9,3156.3,0.0032909]
[1768200695599,0.00353263,3157.0,3156.3,0.0032909]
[1768200695801,0.87718284,3156.9,3156.3,0.0032909]
[1768200696100,0.00353263,3157.0,3156.3,0.0032909]
[1768200696297,0.87720273,3156.9,3156.3,0.0032909]
[1768200696502,0.87717954,3156.8,3156.3,0.0032909]
[1768200696802,0.00353263,3157.0,3156.3,0.0032909]
[1768200696994,0.8771853,3156.9,3156.3,0.0032909]
[1768200697194,0.8771853,3156.8,3156.3,0.0032909]
[1768200697395,0.00353263,3157.0,3156.3,0.0032909]
[1768200697596,0.87718991,3156.9,3156.3,0.0032909]
[1768200697796,0.00353263,3157.0,3156.3,0.0032909]
[1768200697797,0.87718991,3156.8,3156.3,0.0032909]
[1768200697998,0.87718991,3156.7,3156.3,0.0032909]
[1768200698198,0.00353263,3157.0,3156.0,132.76936868]
[1768200698502,0.87721276,3156.9,3156.0,132.76936868]
[1768200698701,0.87721276,3156.8,3156.0,132.76936868]
[1768200698894,0.00353263,3157.0,3156.0,132.76936868]
[1768200699099,0.87720218,3156.9,3156.0,132.77309037]
[1768200699301,0.87720218,3156.8,3156.0,132.77309037]
[1768200699601,0.87720218,3156.7,3156.0,132.77309037]
[1768200699802,0.87720218,3156.6,3156.0,132.77309037]
[1768200700006,0.00353263,3157.0,3156.0,132.77309037]
[1768200700202,0.8771628,3156.9,3156.0,129.61109037]
[1768200700404,0.8771628,3156.8,3156.1,3.179]
[1768200700599,0.8771628,3156.7,3156.1,3.179]
[1768200700794,0.8771628,3156.6,3156.1,3.179]
[1768200701012,0.00353263,3157.0,3156.1,3.179]
[1768200701220,0.87719155,3156.9,3156.1,3.179]
[1768200701521,0.87719155,3156.8,3156.1,3.179]
[1768200701718,0.87719155,3156.7,3156.1,3.179]
[1768200701919,0.87719155,3156.6,3156.1,3.179]
[1768200702213,0.00353263,3157.0,3156.1,3.179]
[1768200702417,0.87734153,3156.9,3156.1,3.179]
[1768200702617,0.87734153,3156.8,3156.1,3.179]
[1768200702820,0.87734153,3156.7,3156.1,3.179]
[1768200703016,0.87734153,3156.6,3156.1,3.32411366]
[1768200703216,0.00353263,3157.0,3156.1,3.32411366]
[1768200703416,0.87743233,3156.9,3156.1,3.32411366]
[1768200703714,0.87743233,3156.8,3156.1,3.32411366]
[1768200703915,0.87743233,3156.7,3156.1,3.32411366]
[1768200704115,0.87743233,3156.6,3156.1,3.32411366]
[1768200704315,0.00353263,3157.0,3156.1,3.32411366]
[1768200704516,0.87755666,3156.9,3156.1,3.32411366]
[1768200704724,0.87755666,3156.8,3156.1,3.32411366]
[1768200705022,0.87755666,3156.7,3156.1,3.32411366]
[1768200705224,0.87755666,3156.6,3156.1,3.32411366]
[1768200705417,0.87755666,3156.5,3156.1,3.32411366]
[1768200705725,0.00353263,3157.0,3156.1,3.32411366]
[1768200706022,0.87772181,3156.9,3156.1,3.32411366]
[1768200706221,0.87772181,3156.8,3156.1,3.32411366]
[1768200706427,0.87772181,3156.7,3156.1,3.32411366]
[1768200706614,0.87772181,3156.9,3156.1,3.32411366]
[1768200706813,0.00353263,3157.0,3156.1,3.32411366]
[1768200707015,0.87793676,3156.9,3156.1,3.32411366]
[1768200707211,0.87793676,3156.8,3156.1,3.32411366]
[1768200707415,0.87793676,3156.7,3156.1,3.32411366]
[1768200707616,0.87793676,3156.6,3156.1,3.32411366]
[1768200707817,0.87793676,3156.5,3156.1,3.32411366]
[1768200708018,0.00353263,3157.0,3156.2,0.14511366]
[1768200708228,0.87813967,3156.9,3156.2,0.14511366]
[1768200708417,0.87813967,3156.8,3156.2,0.14511366]
[1768200708618,0.00353263,3157.0,3156.2,0.14511366]
[1768200708619,0.87813967,3156.7,3156.2,0.14511366]
[1768200708818,0.87813967,3156.6,3156.2,0.14511366]
[1768200709032,0.87813967,3156.5,3156.2,0.14511366]
[1768200709227,0.00353263,3157.0,3156.2,0.14511366]
[1768200709525,0.87956843,3156.9,3156.2,0.14511366]
[1768200709719,0.87956843,3156.8,3156.2,0.14511366]
[1768200709919,0.87956843,3156.7,3156.2,0.14511366]
[1768200710219,0.87956843,3156.6,3156.2,0.14511366]
[1768200710419,0.87956843,3156.5,3156.2,0.14511366]
[1768200710626,0.00353263,3157.0,3156.2,0.14511366]
[1768200710824,0.8795962,3156.9,3156.2,0.14511366]
[1768200711125,0.8795962,3156.8,3156.2,0.14511366]
[1768200711427,0.8795962,3156.7,3156.2,0.14511366]
[1768200711630,0.8795962,3156.6,3156.2,0.14511366]
[1768200711822,0.8795962,3156.5,3156.2,0.14511366]
[1768200712023,0.00353263,3157.0,3156.2,0.14511366]
[1768200712327,0.87965517,3156.9,3156.2,0.14511366]
[1768200712530,0.87965517,3156.8,3156.2,0.14511366]
[1768200712721,0.87965517,3156.7,3156.2,0.14511366]
[1768200712921,0.87965517,3156.6,3156.2,0.14511366]
[1768200713127,0.87965517,3156.5,3156.2,0.14511366]
[1768200713328,0.87965517,3156.4,3156.2,0.14511366]
[1768200713628,0.00353263,3157.0,3156.2,0.14511366]
[1768200713828,0.87972765,3156.9,3156.2,0.14511366]
[1768200714029,0.87972765,3156.8,3156.2,0.14511366]
[1768200714329,0.87973148,3156.7,3156.2,0.14511366]
[1768200714529,0.87973148,3156.6,3156.1,3.179]
[1768200714727,0.87973148,3156.5,3156.1,3.179]
[1768200714927,0.87973148,3156.4,3156.1,3.179]
[1768200715229,0.00353263,3157.0,3156.1,3.179]